bitfinex/quotes_ETHUSD_20230904
["timestamp","ask_amount","ask_price","bid_price","bid_amount"]
[1693814473469,1.086,1639.3,1639.1,0.00381251]
[1693814474165,3.1855,1639.3,1639.1,0.00381251]
[1693814475866,3.1855,1639.3,1639.0,0.79952847]
[1693814476075,1.086,1639.2,1638.9,0.63938073]
[1693814476375,1.086,1639.2,1639.1,0.00366587]
[1693814476670,3.375,1639.2,1639.1,0.00366587]
[1693814477386,3.375,1639.2,1638.9,3.72123477]
[1693814477551,3.375,1639.2,1639.1,0.54587462]
[1693814478076,2.289,1639.2,1638.9,3.72123477]
[1693814478283,2.289,1639.2,1639.1,0.00366587]
[1693814478653,4.3827,1639.2,1639.1,0.00366587]
[1693814479393,4.3827,1639.2,1638.9,3.08185404]
[1693814480350,4.3827,1639.2,1639.0,0.00367411]
[1693814484260,4.086,1639.4,1639.1,3.08185404]
[1693814484593,3.3258,1639.4,1639.1,3.08185404]
[1693814484795,5.3428,1639.4,1639.1,3.08185404]
[1693814485492,5.3428,1639.4,1639.2,0.00365764]
[1693814491290,5.3428,1639.4,1639.2,3.08551168]
[1693814491518,4.829481,1639.6,1639.3,3.08185404]
[1693814491519,1.086,1639.6,1639.3,3.08185404]
[1693814491710,4.086,1639.6,1639.3,3.08185404]
[1693814492309,4.086,1639.6,1639.4,0.00364118]
[1693814492712,4.086,1639.6,1639.4,0.54782982]
[1693814493418,1.086,1639.6,1639.4,0.54782982]
[1693814493616,5.5043,1639.7,1639.4,0.54782982]
[1693814497423,1.086,1639.6,1639.4,0.54782982]
[1693814497725,1.086,1639.6,1639.4,3.62968386]
[1693814498108,5.5043,1639.7,1639.4,3.62968386]
[1693814521959,4.4183,1639.7,1639.4,3.62968386]
[1693814522129,1.086,1639.6,1639.4,3.62968386]
[1693814523227,3.234,1639.6,1639.4,3.62968386]
[1693814526984,2.148,1639.6,1639.4,3.62968386]
[1693814542495,2.78775993,1639.6,1639.4,3.62968386]
[1693814544193,2.148,1639.6,1639.4,3.62968386]
[1693814544391,2.78775993,1639.6,1639.4,3.62968386]
[1693814547294,2.78775993,1639.6,1639.5,3.08185404]
[1693814547495,0.63975993,1639.6,1639.5,3.62630943]
[1693814548197,0.63975993,1639.6,1639.5,3.63069567]
[1693814557703,7.19649983,1639.7,1639.5,3.63069567]
[1693814562281,6.23685993,1639.7,1639.5,3.63069567]
[1693814563416,7.19649983,1639.7,1639.5,3.63069567]
[1693814563725,0.81514346,1639.6,1639.5,3.63069567]
[1693814563887,0.63975993,1639.6,1639.5,3.63069567]
[1693814565988,6.5567399,1639.7,1639.5,3.63069567]
[1693814565989,7.19649983,1639.7,1639.5,3.63069567]
[1693814566189,1.086,1639.6,1639.5,3.63069567]
[1693814571527,1.72575993,1639.6,1639.5,0.54884163]
[1693814572327,2.44540991,1639.6,1639.5,0.54884163]
[1693814573424,2.62080614,1639.6,1639.5,0.54884163]
[1693814573602,8.94068611,1639.6,1639.5,0.54884163]
[1693814573928,9.76927383,1639.6,1639.5,0.54884163]
[1693814574606,10.22012643,1639.6,1639.5,0.54884163]
[1693814576021,10.22012643,1639.6,1639.5,0.00438624]
[1693814576224,10.22012643,1639.6,1639.1,0.64013799]
[1693814576428,10.22012643,1639.6,1639.1,3.08185404]
[1693814576429,1.086,1639.4,1639.1,3.08185404]
[1693814576627,4.086,1639.4,1639.2,0.51095318]
[1693814577210,4.086,1639.4,1639.3,0.00441041]
[1693814579739,6.0866,1639.4,1639.3,0.00441041]
[1693814582564,6.0866,1639.4,1639.3,0.5150088]
[1693814591076,6.5866305,1639.4,1639.3,0.5150088]
[1693814598993,6.0866,1639.4,1639.3,0.5150088]
[1693814599992,3.0,1639.4,1639.3,0.5150088]
[1693814600284,1.086,1639.5,1639.3,0.5150088]
[1693814600461,1.75701013,1639.6,1639.3,0.5150088]
[1693814600663,1.2650878,1639.6,1639.3,0.5150088]
[1693814601482,4.2650878,1639.6,1639.3,0.5150088]
[1693814604302,4.086,1639.6,1639.3,3.59686284]
[1693814604483,1.086,1639.7,1639.4,3.08185404]
[1693814604694,8.72091248,1639.8,1639.4,3.08185404]
[1693814604695,12.20231248,1639.8,1639.4,3.08185404]
[1693814604989,3.0,1639.7,1639.5,0.51051039]
[1693814605355,3.0,1639.7,1639.5,0.51490432]
[1693814616499,3.0,1639.7,1639.5,3.59675836]
[1693814616678,2.55979702,1639.8,1639.5,3.59675836]
[1693814616993,2.082,1639.8,1639.5,3.59675836]
[1693814620533,0.48604813,1639.9,1639.6,3.08185404]
[1693814620705,3.0,1640.0,1639.6,3.08185404]
[1693814621013,3.0,1640.0,1639.6,3.59200973]
[1693814621382,3.0,1640.0,1639.7,0.00437747]
[1693814621580,3.0,1640.0,1639.7,3.08623151]
[1693814622392,5.0885,1640.0,1639.7,3.08623151]
[1693814624292,5.0885,1640.0,1639.8,3.08185404]
[1693814625311,5.0885,1640.0,1639.9,0.004361]
[1693814625522,3.0,1640.0,1639.9,0.004361]
[1693814625715,0.48103675,1640.1,1639.9,3.08621504]
[1693814626023,1.87111217,1640.4,1640.0,3.08185404]
[1693814626024,2.1346,1640.4,1640.0,3.08185404]
[1693814626346,3.2206,1640.4,1640.0,3.08185404]
[1693814626924,1.086,1640.5,1640.0,3.08185404]
[1693814627125,3.94441248,1640.6,1640.0,3.08185404]
[1693814627331,6.94441248,1640.6,1640.0,3.08185404]
[1693814627539,2.1346,1640.5,1640.1,0.51944679]
[1693814627848,2.1346,1640.5,1640.2,3.08185404]
[1693814628210,5.1346,1640.5,1640.2,3.08185404]
[1693814629363,5.1346,1640.5,1640.3,0.00432809]
[1693814631014,6.2206,1640.5,1640.3,0.00432809]
[1693814635355,5.1346,1640.5,1640.3,0.00432809]
[1693814635550,2.1346,1640.5,1640.3,0.00432809]
[1693814642584,2.1346,1640.5,1640.4,0.5183836]
[1693814643281,2.1346,1640.5,1640.4,0.52270347]
[1693814657161,2.2195,1640.6,1640.4,0.52270347]
[1693814657408,5.2195,1640.6,1640.4,0.52270347]
[1693814657922,7.2627,1640.6,1640.4,0.52270347]
[1693814658079,4.2627,1640.6,1640.4,0.52270347]
[1693814658420,4.2627,1640.6,1640.4,3.60455751]
[1693814669091,1.086,1640.5,1640.4,0.52270347]
[1693814678641,1.72594621,1640.5,1640.4,0.52270347]
[1693814682119,2.21946616,1640.5,1640.4,0.52270347]
[1693814685760,1.72594621,1640.5,1640.4,0.52270347]
[1693814691441,2.68586553,1640.5,1640.4,0.52270347]
[1693814692843,1.086,1640.5,1640.4,0.52270347]
[1693814693043,1.72594621,1640.6,1640.4,0.52270347]
[1693814695198,0.63994621,1640.6,1640.4,3.60455751]
[1693814695795,1.59986553,1640.7,1640.4,3.60455751]
[1693814697396,0.63994621,1640.7,1640.4,3.60455751]
[1693814700787,0.63994621,1640.7,1640.4,0.52270347]
[1693814700788,1.086,1640.6,1640.4,0.52270347]
[1693814701496,3.0942,1640.6,1640.4,0.52270347]
[1693814706798,3.73414621,1640.6,1640.4,0.52270347]
[1693814707000,3.0942,1640.6,1640.4,0.52270347]
[1693814711868,3.56360655,1640.6,1640.4,0.52270347]
[1693814712070,1.086,1640.5,1640.4,0.52270347]
[1693814713726,4.086,1640.5,1640.4,0.52270347]
[1693814714011,7.72594621,1640.5,1640.4,0.52270347]
[1693814721427,4.72594621,1640.5,1640.4,0.52270347]
[1693814727835,3.63994621,1640.5,1640.4,0.52270347]
[1693814728222,3.0,1640.5,1640.4,0.52270347]
[1693814733550,2.49435549,1640.6,1640.4,0.52270347]
[1693814733766,0.48615549,1640.6,1640.4,0.52270347]
[1693814734051,1.72594621,1640.7,1640.4,0.52270347]
[1693814734356,0.63994621,1640.7,1640.4,0.52270347]
[1693814735445,3.63994621,1640.7,1640.4,0.52270347]
[1693814738059,3.63994621,1640.7,1640.4,3.60455751]
[1693814744566,5.67804621,1640.7,1640.4,3.60455751]
[1693814753566,1.086,1640.6,1640.4,0.52270347]
[1693814754192,3.0891,1640.6,1640.4,0.52270347]
[1693814755388,3.0,1640.5,1640.4,0.52270347]
[1693814755592,4.086,1640.5,1640.4,0.52270347]
[1693814762115,3.0,1640.5,1640.4,0.52270347]
[1693814766026,4.2044,1640.6,1640.4,0.52270347]
[1693814770459,5.93034621,1640.6,1640.4,0.52270347]
[1693814770752,6.61937276,1640.6,1640.4,0.52270347]
[1693814771314,5.93034621,1640.6,1640.4,0.52270347]
[1693814772847,5.93019843,1640.6,1640.4,0.52270347]
[1693814788866,2.68549608,1640.7,1640.4,0.52270347]
[1693814789082,3.0,1640.6,1640.4,0.52270347]
[1693814789459,4.72579843,1640.7,1640.4,0.52270347]
[1693814792686,6.87039843,1640.7,1640.4,0.52270347]
[1693814793083,6.87039843,1640.7,1640.4,3.60455751]
[1693814793276,4.72579843,1640.7,1640.4,3.60455751]
[1693814797091,3.63979843,1640.7,1640.4,3.60455751]
[1693814804607,3.0,1640.7,1640.4,3.60455751]
[1693814808888,5.0814,1640.7,1640.4,3.60455751]
[1693814809315,3.0,1640.7,1640.4,3.60455751]
[1693814814187,5.0253,1640.7,1640.4,3.60455751]
[1693814820261,6.1113,1640.7,1640.4,3.60455751]
[1693814820431,1.086,1640.6,1640.4,3.60455751]
[1693814820588,3.1159,1640.6,1640.4,3.60455751]
[1693814821590,2.0299,1640.6,1640.4,3.60455751]
[1693814822010,5.0299,1640.6,1640.4,3.60455751]
[1693814822503,5.0299,1640.6,1640.4,3.08617391]
[1693814822929,5.0299,1640.6,1640.5,0.45562964]
[1693814823329,5.0299,1640.6,1640.5,0.46070056]
[1693814840498,5.66957564,1640.6,1640.5,0.46070056]
[1693814844473,5.0299,1640.6,1640.5,0.46070056]
[1693814844674,5.66957564,1640.6,1640.5,0.46070056]
[1693814845005,5.0299,1640.6,1640.5,0.46070056]
[1693814846601,5.51797025,1640.6,1640.5,0.46070056]
[1693814859729,6.157819,1640.6,1640.5,0.46070056]
[1693814861820,4.127919,1640.6,1640.5,0.46070056]
[1693814865231,4.12818405,1640.6,1640.5,0.46070056]
[1693814865787,3.6401138,1640.6,1640.5,0.46070056]
[1693814868136,4.7261138,1640.6,1640.5,0.46070056]
[1693814868322,5.49322225,1640.6,1640.5,0.46070056]
[1693814880153,5.98036841,1640.6,1640.5,0.46070056]
[1693814880361,5.21325996,1640.6,1640.5,0.46070056]
[1693814885060,6.17343066,1640.6,1640.5,0.46070056]
[1693814885368,5.21325996,1640.6,1640.5,0.46070056]
[1693814902226,4.12725996,1640.6,1640.5,0.46070056]
[1693814919758,5.08743066,1640.6,1640.5,0.46070056]
[1693814921671,4.12725996,1640.6,1640.5,0.46070056]
[1693814921877,5.08743066,1640.6,1640.5,0.46070056]
[1693814931390,3.0,1640.6,1640.5,0.46070056]
[1693814931595,4.60049075,1640.7,1640.5,0.46070056]
[1693814932179,3.64032005,1640.7,1640.5,0.46070056]
[1693814934856,3.39636005,1640.7,1640.5,0.46070056]
[1693814935390,3.0,1640.7,1640.5,0.46070056]
[1693814936753,2.99027,1640.7,1640.5,0.46070056]
[1693814937691,1.56453156,1640.8,1640.5,0.46070056]
[1693814937995,4.2246707,1640.9,1640.5,0.46070056]
[1693814938965,3.0,1640.8,1640.5,0.46070056]
[1693814945299,3.0,1640.8,1640.6,3.08185404]
[1693814945497,3.29881273,1640.9,1640.6,3.08185404]
[1693814945704,3.29881273,1640.9,1640.7,0.45492115]
[1693814946109,3.29881273,1640.9,1640.6,3.08185404]
[1693814946493,3.29881273,1640.9,1640.8,0.00589514]
[1693814946894,6.29881273,1640.9,1640.8,0.00589514]
[1693814947494,6.29881273,1640.9,1640.6,3.08185404]
[1693814949602,5.65935272,1640.9,1640.6,3.08185404]
[1693814949929,6.29881273,1640.9,1640.6,3.08185404]
[1693814950431,5.65935272,1640.9,1640.7,0.00590336]
[1693814951505,5.65935272,1640.9,1640.6,3.08185404]
[1693814952513,5.65935272,1640.9,1640.7,0.00590336]
[1693814952842,3.58185272,1640.9,1640.7,3.0877574]
[1693814953224,0.58185272,1640.9,1640.7,3.0877574]
[1693814957563,0.58185272,1640.9,1640.8,0.45456697]
[1693814958450,0.58185272,1640.9,1640.8,0.46046211]
[1693814966351,1.66785272,1640.9,1640.8,0.46046211]
[1693814966767,2.41319863,1640.9,1640.8,0.46046211]
[1693814966968,5.41319863,1640.9,1640.8,0.46046211]
[1693814967976,6.05230506,1640.9,1640.8,0.46046211]
[1693814968169,5.41319863,1640.9,1640.8,0.46046211]
[1693814968482,6.05230506,1640.9,1640.8,0.46046211]
[1693814971791,5.41319863,1640.9,1640.8,0.46046211]
[1693814971950,6.05245504,1640.9,1640.8,0.46046211]
[1693814972151,5.30710913,1640.9,1640.8,0.46046211]
[1693814976352,6.26599375,1640.9,1640.8,0.46046211]
[1693814976554,9.53226518,1640.9,1640.8,0.46046211]
[1693814976891,10.84745007,1640.9,1640.8,0.46046211]
[1693814977597,11.16707828,1640.9,1640.8,0.46046211]
[1693814977801,12.79881303,1640.9,1640.8,0.46046211]
[1693814979846,12.79881303,1640.9,1640.8,0.00589514]
[1693814980064,17.09721303,1640.9,1640.8,0.00589514]
[1693814980479,3.0,1640.6,1640.2,1.05906995]
[1693814980790,3.0,1640.5,1640.3,0.45633831]
[1693814981356,3.0,1640.5,1640.4,0.00527033]
[1693814987589,3.0,1640.5,1640.4,0.46125428]
[1693815023383,3.63952169,1640.5,1640.4,0.46125428]
[1693815032395,3.63952169,1640.5,1640.4,0.73484465]
[1693815042500,3.63952169,1640.5,1640.4,0.73340182]
[1693815049440,3.63952169,1640.5,1640.4,0.72957432]
[1693815049829,3.63952169,1640.5,1640.2,3.72034109]
[1693815049993,3.63952169,1640.5,1640.3,1.05909822]
[1693815050326,5.74722169,1640.5,1640.3,1.79648952]
[1693815050540,5.74722169,1640.5,1640.3,0.7373913]
[1693815058758,0.63952169,1640.4,1640.3,0.7373913]
[1693815060314,6.70650423,1640.5,1640.3,0.7373913]
[1693815062450,5.74722169,1640.5,1640.3,0.7373913]
[1693815101452,3.63952169,1640.5,1640.3,0.7373913]
[1693815101644,0.63952169,1640.6,1640.3,3.81924534]
[1693815106850,4.13558742,1640.7,1640.3,3.81924534]
[1693815107744,4.13558742,1640.7,1640.4,3.08185404]
[1693815107921,3.17630488,1640.7,1640.4,4.14087573]
[1693815108125,3.17630488,1640.7,1640.4,3.08185404]
[1693815108446,3.17630488,1640.7,1640.5,0.73075743]
[1693815110746,4.13558742,1640.7,1640.5,0.73075743]
[1693815111052,3.17630488,1640.7,1640.5,0.73075743]
[1693815114421,2.53678319,1640.7,1640.5,0.73075743]
[1693815114620,4.13592887,1640.7,1640.5,0.73075743]
[1693815115551,3.17644146,1640.7,1640.5,0.73075743]
[1693815122375,3.17644146,1640.7,1640.5,3.81261147]
[1693815132864,3.17644146,1640.7,1640.5,0.73075743]
[1693815133155,0.63965827,1640.6,1640.2,3.0]
[1693815133375,4.81435827,1640.6,1640.3,3.08185404]
[1693815133566,4.81435827,1640.6,1640.3,3.81374534]
[1693815142074,4.81435827,1640.6,1640.3,0.7318913]
[1693815146285,5.77384568,1640.6,1640.3,0.7318913]
[1693815152094,4.81435827,1640.6,1640.3,0.7318913]
[1693815152598,4.81435827,1640.6,1640.4,0.00369096]
[1693815153168,4.81435827,1640.6,1640.5,0.72994975]
[1693815153369,4.81435827,1640.6,1640.5,0.73363246]
[1693815153370,2.82865827,1640.6,1640.5,0.73363246]
[1693815153883,2.09172887,1640.7,1640.5,0.73363246]
[1693815154084,5.09172887,1640.7,1640.5,0.73363246]
[1693815154290,4.13224146,1640.7,1640.5,0.73363246]
[1693815154471,5.09172887,1640.7,1640.5,0.73363246]
[1693815154662,4.13224146,1640.7,1640.5,0.73363246]
[1693815155193,5.09172887,1640.7,1640.5,0.73363246]
[1693815155499,4.13224146,1640.7,1640.5,0.73363246]
[1693815155797,5.09172887,1640.7,1640.5,0.73363246]
[1693815161888,0.63965827,1640.6,1640.5,0.73363246]
[1693815163589,5.09172887,1640.7,1640.5,0.73363246]
[1693815165205,0.63965827,1640.6,1640.5,0.73363246]
[1693815167076,5.09172887,1640.7,1640.5,0.73363246]
[1693815179527,7.15632887,1640.7,1640.5,0.73363246]
[1693815192335,6.19684146,1640.7,1640.5,3.8154865]
[1693815198171,7.15632887,1640.7,1640.5,3.8154865]
[1693815200346,2.09172887,1640.7,1640.6,3.08185404]
[1693815200548,0.49258319,1640.7,1640.6,4.14075322]
[1693815200754,2.1809984,1640.9,1640.6,4.87094382]
[1693815200961,3.17841099,1640.9,1640.6,3.81204464]
[1693815201649,3.17841099,1640.9,1640.7,0.00366622]
[1693815201851,3.17841099,1640.9,1640.7,3.08552026]
[1693815204044,3.17841099,1640.9,1640.7,6.08552026]
[1693815205571,2.53875272,1640.9,1640.7,6.08552026]
[1693815212382,2.53875272,1640.9,1640.8,0.65654387]
[1693815213474,2.0579,1640.9,1640.8,0.66020185]
[1693815215196,2.69755827,1640.9,1640.8,0.66020185]
[1693815215394,2.64799457,1640.9,1640.8,0.66020185]
[1693815215801,3.28765284,1640.9,1640.8,0.66020185]
[1693815236415,2.69755827,1640.9,1640.8,0.66020185]
[1693815241630,3.65704568,1640.9,1640.8,0.66020185]
[1693815244606,3.01738741,1640.9,1640.8,0.66020185]
[1693815267651,1.06048741,1640.9,1640.8,0.66020185]
[1693815273844,0.101,1640.9,1640.8,0.66020185]
[1693815274048,1.06141382,1640.9,1640.8,0.66020185]
[1693815302800,1.70164247,1640.9,1640.8,0.66020185]
[1693815306555,0.74125699,1640.9,1640.8,0.66020185]
[1693815341564,0.101,1640.9,1640.8,0.66020185]
[1693815343640,0.74095585,1640.9,1640.8,0.66020185]
[1693815349587,0.101,1640.9,1640.8,0.66020185]
[1693815379816,0.101,1640.9,1640.8,3.74205589]
[1693815392452,0.101,1640.9,1640.8,3.79737765]
[1693815393552,0.101,1640.9,1640.8,3.79725842]
[1693815399626,0.101,1640.9,1640.8,4.85609142]
[1693815410894,0.101,1640.9,1640.8,3.79725842]
[1693815412591,0.101,1640.9,1640.8,0.71540438]
[1693815417190,1.185,1640.9,1640.8,0.71540438]
[1693815423305,1.135,1640.9,1640.8,0.71540438]
[1693815437102,1.4602,1640.9,1640.8,0.71540438]
[1693815437308,8.42013378,1640.9,1640.8,0.71540438]
[1693815437479,10.18004549,1640.9,1640.8,0.71540438]
[1693815437684,8.90013378,1640.9,1640.8,0.71540438]
[1693815440609,9.53953878,1640.9,1640.8,0.71540438]
[1693815442773,8.579605,1640.9,1640.8,0.71540438]
[1693815447780,9.05808358,1640.9,1640.8,0.71540438]
[1693815449720,9.05808358,1640.9,1640.8,0.71186563]
[1693815452824,9.05808358,1640.9,1640.8,0.71547032]
[1693815471538,10.01801736,1640.9,1640.8,0.71547032]
[1693815472046,9.05808358,1640.9,1640.8,0.71547032]
[1693815472546,10.01801736,1640.9,1640.8,0.71547032]
[1693815474050,10.01801736,1640.9,1640.8,0.00360469]
[1693815474741,10.01801736,1640.9,1640.7,3.0]
[1693815475047,1.48180174,1640.8,1640.7,3.0]
[1693815475349,4.48180174,1640.8,1640.7,3.0]
[1693815475726,5.12120674,1640.8,1640.7,3.0]
[1693815476328,8.20306078,1640.8,1640.7,3.0]
[1693815478962,9.28706078,1640.8,1640.7,3.0]
[1693815480464,6.20520674,1640.8,1640.7,3.0]
[1693815481631,7.16514052,1640.8,1640.7,3.0]
[1693815482032,7.16545166,1640.8,1640.7,3.0]
[1693815482233,6.52573552,1640.8,1640.7,3.0]
[1693815487578,6.711424,1640.8,1640.7,3.0]
[1693815488987,6.711424,1640.8,1640.7,3.58487528]
[1693815489146,6.711424,1640.8,1640.7,3.0]
[1693815493646,7.99133571,1640.8,1640.7,3.0]
[1693815493857,8.63155701,1640.8,1640.7,3.0]
[1693815494063,11.71341105,1640.8,1640.7,3.58368031]
[1693815494262,11.71341105,1640.8,1640.7,3.0]
[1693815494859,3.0,1640.5,1640.3,1.969]
[1693815495075,4.084,1640.4,1640.3,1.969]
[1693815495271,4.084,1640.4,1640.3,1.05911017]
[1693815495474,4.9008,1640.4,1640.3,1.05911017]
[1693815495766,4.9008,1640.4,1640.3,0.0036405]
[1693815496581,4.9008,1640.4,1640.1,2.65632097]
[1693815496786,4.084,1640.4,1640.1,2.65632097]
[1693815497357,4.084,1640.4,1640.2,1.05915416]
[1693815497566,4.084,1640.4,1640.2,0.53420648]
[1693815497774,1.084,1640.3,1640.2,0.53420648]
[1693815498186,1.084,1640.3,1640.2,1.59335839]
[1693815501324,4.4924,1640.3,1640.2,0.53420648]
[1693815501595,8.61244444,1640.3,1640.2,0.53420648]
[1693815503274,7.9724,1640.3,1640.2,0.53420648]
[1693815504294,7.9724,1640.3,1640.2,0.00364875]
[1693815504663,7.9724,1640.3,1639.9,1.0258]
[1693815504990,1.084,1640.1,1639.8,1.8003]
[1693815505293,1.084,1640.1,1640.0,0.47331225]
[1693815505600,1.084,1640.1,1640.0,0.00347704]
[1693815506693,1.084,1640.1,1639.7,1.69821042]
[1693815507692,1.084,1640.1,1639.8,0.0034949]
[1693815508494,4.620124,1640.1,1639.8,0.0034949]
[1693815508695,3.0,1640.0,1639.8,0.0034949]
[1693815512596,3.0,1640.0,1639.9,0.47508235]
[1693815513099,3.0,1640.0,1639.6,3.18572187]
[1693815513264,3.0,1640.0,1639.6,7.32694713]
[1693815513463,3.0,1640.0,1639.7,1.05937122]
[1693815513690,3.0,1640.0,1639.7,1.06291861]
[1693815515016,3.0,1640.0,1639.7,1.70178533]
[1693815515161,3.0,1640.0,1639.7,1.06291861]
[1693815515377,3.0,1640.0,1639.7,1.70178533]
[1693815515378,4.084,1640.0,1639.7,1.70178533]
[1693815519880,3.0,1640.0,1639.7,1.70178533]
[1693815525610,4.9922,1640.0,1639.7,1.70178533]
[1693815525803,3.0,1640.0,1639.7,1.70178533]
[1693815527511,3.0,1640.0,1639.8,0.4742729]
[1693815528124,0.47934297,1640.1,1639.8,0.4742729]
[1693815528292,5.0492,1640.2,1639.8,0.4742729]
[1693815528620,5.0492,1640.2,1639.9,0.00353088]
[1693815529184,2.0492,1640.1,1639.9,0.00353088]
[1693815530583,2.0492,1640.1,1639.9,1.06283851]
[1693815534819,3.79572411,1640.1,1639.9,0.00353088]
[1693815535116,4.084,1640.0,1639.9,0.00353088]
[1693815535519,6.0865,1640.0,1639.9,0.00353088]
[1693815540527,6.0865,1640.0,1639.9,1.0629251]
[1693815540710,6.0865,1640.0,1639.9,0.00353088]
[1693815541034,6.76140241,1640.0,1639.9,0.00353088]
[1693815541232,6.76140241,1640.0,1639.9,1.0629251]
[1693815542322,6.76140241,1640.0,1639.9,1.49080479]
[1693815549637,6.76140241,1640.0,1639.9,0.43141057]
[1693815549638,7.24140241,1640.0,1639.9,0.43141057]
[1693815560596,7.73128697,1640.0,1639.9,0.43141057]
[1693815561294,13.88113075,1640.0,1639.9,0.43141057]
[1693815569275,11.87863075,1640.0,1639.9,0.43141057]
[1693815569974,10.31463075,1640.0,1639.9,0.43141057]
[1693815570155,10.79463075,1640.0,1639.9,0.43141057]
[1693815574778,10.79463075,1640.0,1639.9,3.43141057]
[1693815575914,10.79463075,1640.0,1639.9,0.43141057]
[1693815577286,11.87863075,1640.0,1639.9,0.43141057]
[1693815582564,11.8786312,1640.0,1639.9,0.43141057]
[1693815586184,11.8786312,1640.0,1639.9,1.49082496]
[1693815586393,11.8786312,1640.0,1639.9,0.43141057]
[1693815586702,11.8786312,1640.0,1639.9,1.49082511]
[1693815594213,5.72878697,1640.0,1639.9,1.49082511]
[1693815594414,11.87863241,1640.0,1639.9,1.49082511]
[1693815594777,11.87863241,1640.0,1639.9,1.06294542]
[1693815594977,11.87863241,1640.0,1639.9,0.00353088]
[1693815595178,11.87863241,1640.0,1639.9,0.43161057]
[1693815595711,14.96048645,1640.0,1639.9,1.49102511]
[1693815595911,16.04448645,1640.0,1639.9,1.49102511]
[1693815596209,18.28473026,1640.0,1639.9,0.43161057]
[1693815596410,17.3246636,1640.0,1639.9,0.43161057]
[1693815596720,3.0,1639.7,1639.5,0.63886672]
[1693815596878,3.0,1639.7,1639.4,2.72056681]
[1693815596879,3.0,1639.6,1639.4,2.72056681]
[1693815597078,3.0,1639.6,1639.5,1.05960394]
[1693815597409,3.0,1639.6,1639.4,1.59716681]
[1693815597831,3.0,1639.6,1639.5,0.0032929]
[1693815599214,4.084,1639.6,1639.5,0.0032929]
[1693815600319,1.084,1639.6,1639.5,0.0032929]
[1693815600901,1.084,1639.6,1639.5,1.06289684]
[1693815601081,1.084,1639.6,1639.5,0.0032929]
[1693815602726,1.084,1639.6,1639.5,0.4303789]
[1693815602889,1.084,1639.6,1639.3,0.63886672]
[1693815603087,1.084,1639.6,1639.3,1.69850233]
[1693815603718,1.084,1639.6,1639.4,0.00397137]
[1693815604287,1.084,1639.6,1639.4,1.06360698]
[1693815604486,1.084,1639.6,1639.4,0.00397137]
[1693815605718,1.084,1639.6,1639.3,1.69849692]
[1693815606588,1.084,1639.6,1639.4,0.00397137]
[1693815607830,1.084,1639.6,1639.3,1.69849692]
[1693815608629,1.56460539,1639.6,1639.3,1.69849692]
[1693815608923,1.56460539,1639.6,1639.4,0.00397313]
[1693815609707,1.56460539,1639.6,1639.3,1.69849692]
[1693815610706,1.56460539,1639.6,1639.4,0.00397489]
[1693815611631,1.56460539,1639.6,1639.3,1.69849692]
[1693815612417,1.56460539,1639.6,1639.2,5.72056681]
[1693815612619,1.56460539,1639.6,1639.4,0.00397137]
[1693815613633,1.56460539,1639.6,1639.3,1.05963188]
[1693815613927,0.48060539,1639.6,1639.3,1.05963188]
[1693815614098,9.3452,1639.7,1639.3,1.05963188]
[1693815614833,9.3452,1639.7,1639.4,0.00397313]
[1693815615132,10.4979528,1639.7,1639.4,0.00397313]
[1693815615941,10.4979528,1639.7,1639.2,3.63886672]
[1693815616101,10.4979528,1639.7,1639.3,1.05964376]
[1693815616311,3.2004,1639.6,1639.3,1.05964376]
[1693815616543,4.084,1639.5,1639.3,1.05964376]
[1693815616843,4.084,1639.5,1639.4,0.00361354]
[1693815617442,3.0,1639.5,1639.4,0.00361354]
[1693815617744,3.0,1639.5,1639.4,0.43697687]
[1693815617908,3.0,1639.5,1639.3,1.05964376]
[1693815618109,3.0,1639.5,1639.2,3.63886672]
[1693815618310,3.0,1639.5,1639.3,1.05968488]
[1693815618726,3.0,1639.5,1639.4,0.00361354]
[1693815619742,3.0,1639.5,1639.3,1.05968488]
[1693815619743,4.964,1639.5,1639.3,1.05968488]
[1693815620609,4.964,1639.5,1639.4,0.00360714]
[1693815621608,4.964,1639.5,1639.3,1.05968488]
[1693815622403,4.964,1639.5,1639.2,3.0]
[1693815622612,4.964,1639.5,1639.4,0.00360394]
[1693815622946,5.5688,1639.5,1639.4,0.00360394]
[1693815623716,5.5688,1639.5,1639.2,3.0]
[1693815623915,4.964,1639.5,1639.2,3.0]
[1693815624748,4.964,1639.5,1639.3,0.0035993]
[1693815629151,5.45817436,1639.5,1639.3,0.0035993]
[1693815629654,6.54217436,1639.5,1639.3,0.0035993]
[1693815630653,6.54217436,1639.5,1639.3,1.06330609]
[1693815631865,5.45817436,1639.5,1639.3,1.06330609]
[1693815632438,5.45817436,1639.5,1639.4,0.44298089]
[1693815632637,5.45817436,1639.5,1639.4,0.00360714]
[1693815633457,6.1123918,1639.5,1639.4,0.00360714]
[1693815633658,6.1123918,1639.5,1639.3,1.05969861]
[1693815636174,7.1963918,1639.5,1639.3,1.05969861]
[1693815636473,0.48,1639.4,1639.3,1.05969861]
[1693815645483,1.564,1639.4,1639.3,1.05969861]
[1693815645784,2.33163918,1639.4,1639.3,1.05969861]
[1693815647353,2.33163918,1639.4,1639.3,1.46314429]
[1693815670827,1.564,1639.4,1639.3,1.46314429]
[1693815671031,1.084,1639.4,1639.3,1.46314429]
[1693815671194,3.49417436,1639.5,1639.3,2.10201101]
[1693815671399,0.49417436,1639.5,1639.4,1.05969861]
[1693815671611,0.48,1639.5,1639.3,0.40344568]
[1693815671931,0.48,1639.5,1639.4,1.05973618]
[1693815672230,1.564,1639.5,1639.3,1.05973618]
[1693815672433,1.564,1639.5,1639.4,1.42280041]
[1693815685054,2.06074398,1639.5,1639.4,1.42280041]
[1693815687343,0.97674398,1639.5,1639.4,1.42280041]
[1693815692658,0.97674398,1639.5,1639.4,1.42645474]
[1693815708080,0.49674398,1639.5,1639.4,1.42645474]
[1693815708371,3.64063335,1639.6,1639.4,1.42645474]
[1693815708568,3.64063335,1639.6,1639.4,0.36671856]
[1693815711275,3.0,1639.6,1639.4,0.36671856]
[1693815714544,3.0,1639.6,1639.5,1.05966405]
[1693815715179,3.0,1639.6,1639.4,0.64252105]
[1693815715376,3.0,1639.6,1639.5,0.36443942]
[1693815715546,3.0,1639.6,1639.5,1.42410347]
[1693815715745,3.0,1639.6,1639.5,1.42774954]
[1693815717780,3.0,1639.6,1639.5,1.42774545]
[1693815718187,3.0,1639.6,1639.5,0.36808549]
[1693815718346,3.0,1639.6,1639.5,1.42774363]